[Event "Titled Tuesday Blitz May 2 Early 2023"]
[White "Daeschler, Florian"]
[Black "Martinez Reyes, Pedro Ramon"]
[WhiteFideId "20678193"]
[BlackFideId "3901807"]
[WhiteElo "2221"]
[BlackElo "2340"]
[Result "1/2-1/2"]
[Round "03"]
[TimeControl "180+2"]
[Date "2023.05.02"]
[WhiteClock "0:00:21"]
[BlackClock "0:00:07"]

1. d4 {[%clk 0:02:58]}  Nf6 {[%clk 0:02:58]} 2. c4 {[%clk 0:02:58]}  Nc6 {[%clk 0:02:56]} 3. Nf3 {[%clk 0:02:57]}  e6 {[%clk 0:02:56]} 4. g3 {[%clk 0:02:56]}  Bb4+ {[%clk 0:02:55]} 5. Bd2 {[%clk 0:02:56]}  Qe7 {[%clk 0:02:51]} 6. Nc3 {[%clk 0:02:56]}  d5 {[%clk 0:02:50]} 7. Bg2 {[%clk 0:02:50]}  O-O {[%clk 0:02:42]} 8. O-O {[%clk 0:02:50]}  Rd8 {[%clk 0:02:42]} 9. cxd5 {[%clk 0:02:42]}  exd5 {[%clk 0:02:40]} 10. Rc1 {[%clk 0:02:36]}  h6 {[%clk 0:02:27]} 11. Qc2 {[%clk 0:02:29]}  a6 {[%clk 0:02:19]} 12. Na4 {[%clk 0:02:22]}  Bxd2 {[%clk 0:01:44]} 13. Qxd2 {[%clk 0:02:20]}  Ne4 {[%clk 0:01:42]} 14. Qc2 {[%clk 0:02:15]}  Bf5 {[%clk 0:01:33]} 15. Qb3 {[%clk 0:02:07]}  Qb4 {[%clk 0:01:14]} 16. Qxb4 {[%clk 0:01:58]}  Nxb4 {[%clk 0:01:14]} 17. Rxc7 {[%clk 0:01:57]}  Rd7 {[%clk 0:01:04]} 18. Rxd7 {[%clk 0:01:55]}  Bxd7 {[%clk 0:01:04]} 19. Nb6 {[%clk 0:01:55]}  Rd8 {[%clk 0:01:02]} 20. a3 {[%clk 0:01:56]}  Nc6 {[%clk 0:00:52]} 21. Nxd5 {[%clk 0:01:44]}  Bf5 {[%clk 0:00:37]} 22. Nc3 {[%clk 0:01:44]}  Nxd4 {[%clk 0:00:36]} 23. Nxd4 {[%clk 0:01:30]}  Rxd4 {[%clk 0:00:35]} 24. Nxe4 {[%clk 0:01:25]}  Bxe4 {[%clk 0:00:35]} 25. e3 {[%clk 0:01:26]}  Rc4 {[%clk 0:00:34]} 26. Bxe4 {[%clk 0:01:25]}  Rxe4 {[%clk 0:00:34]} 27. Rc1 {[%clk 0:01:26]}  Re7 {[%clk 0:00:28]} 28. Rc5 {[%clk 0:01:26]}  g5 {[%clk 0:00:26]} 29. Kf1 {[%clk 0:01:25]}  Kg7 {[%clk 0:00:24]} 30. g4 {[%clk 0:01:25]}  Rd7 {[%clk 0:00:24]} 31. Ke2 {[%clk 0:01:25]}  Kg6 {[%clk 0:00:22]} 32. h3 {[%clk 0:01:25]}  f6 {[%clk 0:00:22]} 33. f4 {[%clk 0:01:20]}  Re7 {[%clk 0:00:19]} 34. Kf3 {[%clk 0:01:20]}  Rd7 {[%clk 0:00:18]} 35. b4 {[%clk 0:01:18]}  Rd3 {[%clk 0:00:18]} 36. a4 {[%clk 0:01:18]}  Rd7 {[%clk 0:00:17]} 37. b5 {[%clk 0:01:17]}  axb5 {[%clk 0:00:16]} 38. Rxb5 {[%clk 0:01:15]}  Kg7 {[%clk 0:00:16]} 39. a5 {[%clk 0:01:15]}  Kg6 {[%clk 0:00:16]} 40. Rb6 {[%clk 0:01:13]}  gxf4 {[%clk 0:00:12]} 41. exf4 {[%clk 0:01:13]}  Rd3+ {[%clk 0:00:12]} 42. Ke4 {[%clk 0:01:13]}  Ra3 {[%clk 0:00:11]} 43. Rxb7 {[%clk 0:00:44]}  Rxa5 {[%clk 0:00:10]} 44. f5+ {[%clk 0:00:45]}  Kg5 {[%clk 0:00:11]} 45. Rg7+ {[%clk 0:00:45]}  Kh4 {[%clk 0:00:11]} 46. Rg6 {[%clk 0:00:46]}  Kxh3 {[%clk 0:00:11]} 47. Rxh6+ {[%clk 0:00:33]}  Kxg4 {[%clk 0:00:11]} 48. Rxf6 {[%clk 0:00:33]}  Ra4+ {[%clk 0:00:11]} 49. Kd5 {[%clk 0:00:33]}  Ra5+ {[%clk 0:00:11]} 50. Ke6 {[%clk 0:00:33]}  Ra6+ {[%clk 0:00:11]} 51. Kf7 {[%clk 0:00:33]}  Ra8 {[%clk 0:00:11]} 52. Kg6 {[%clk 0:00:22]}  Rg8+ {[%clk 0:00:10]} 53. Kf7 {[%clk 0:00:23]}  Ra8 {[%clk 0:00:10]} 54. Kg7 {[%clk 0:00:23]}  Rb8 {[%clk 0:00:09]} 55. Rf7 {[%clk 0:00:23]}  Kg5 {[%clk 0:00:09]} 56. f6 {[%clk 0:00:23]}  Rb6 {[%clk 0:00:06]} 57. Rf8 {[%clk 0:00:20]}  Ra6 {[%clk 0:00:02]} 58. f7 {[%clk 0:00:20]}  Rg6+ {[%clk 0:00:02]} 59. Kh8 {[%clk 0:00:19]}  Rh6+ {[%clk 0:00:03]} 60. Kg7 {[%clk 0:00:19]}  Rg6+ {[%clk 0:00:04]} 61. Kh7 {[%clk 0:00:19]}  Rh6+ {[%clk 0:00:05]} 62. Kg8 {[%clk 0:00:19]}  Rg6+ {[%clk 0:00:06]} 63. Kh7 {[%clk 0:00:20]}  Rh6+ {[%clk 0:00:06]} 64. Kg8 {[%clk 0:00:20]}  Rg6+ {[%clk 0:00:07]} 65. Kh7 {[%clk 0:00:21]} 1/2-1/2


[Site "https://www.chess.com"]

[Event "Titled Tuesday Blitz May 2 Early 2023"]
[White "Sellitti, Federico"]
[Black "Pujari, Rucha"]
[WhiteFideId "821829"]
[BlackFideId "5024528"]
[WhiteElo "2176"]
[BlackElo "2129"]
[Result "0-1"]
[Round "03"]
[TimeControl "180+2"]
[Date "2023.05.02"]
[WhiteClock "0:00:02"]
[BlackClock "0:00:13"]

1. e4 {[%clk 0:03:00]}  e5 {[%clk 0:02:59]} 2. Nc3 {[%clk 0:03:01]}  Nc6 {[%clk 0:02:58]} 3. f4 {[%clk 0:03:01]}  exf4 {[%clk 0:02:43]} 4. Nf3 {[%clk 0:03:00]}  Nf6 {[%clk 0:02:30]} 5. e5 {[%clk 0:02:35]}  Ng4 {[%clk 0:02:25]} 6. d4 {[%clk 0:02:34]}  Bb4 {[%clk 0:02:24]} 7. Bxf4 {[%clk 0:02:25]}  d6 {[%clk 0:02:21]} 8. Bd3 {[%clk 0:01:34]}  dxe5 {[%clk 0:02:16]} 9. dxe5 {[%clk 0:01:35]}  Be6 {[%clk 0:01:22]} 10. h3 {[%clk 0:01:34]}  Nh6 {[%clk 0:01:15]} 11. Bxh6 {[%clk 0:01:33]}  gxh6 {[%clk 0:01:16]} 12. Qe2 {[%clk 0:01:18]}  Nd4 {[%clk 0:01:11]} 13. Qe4 {[%clk 0:00:55]}  Nxf3+ {[%clk 0:01:01]} 14. Qxf3 {[%clk 0:00:56]}  Bxc3+ {[%clk 0:00:42]} 15. bxc3 {[%clk 0:00:55]}  Qd5 {[%clk 0:00:36]} 16. Qxd5 {[%clk 0:00:40]}  Bxd5 {[%clk 0:00:37]} 17. Kf2 {[%clk 0:00:28]}  O-O-O {[%clk 0:00:28]} 18. Rhe1 {[%clk 0:00:22]}  Bc6 {[%clk 0:00:21]} 19. Rad1 {[%clk 0:00:17]}  h5 {[%clk 0:00:20]} 20. g3 {[%clk 0:00:17]}  Rhg8 {[%clk 0:00:19]} 21. Bxh7 {[%clk 0:00:13]}  Rxd1 {[%clk 0:00:19]} 22. Rxd1 {[%clk 0:00:14]}  Re8 {[%clk 0:00:19]} 23. Re1 {[%clk 0:00:12]}  Bd5 {[%clk 0:00:19]} 24. a3 {[%clk 0:00:12]}  c5 {[%clk 0:00:19]} 25. Bf5+ {[%clk 0:00:11]}  Kc7 {[%clk 0:00:19]} 26. g4 {[%clk 0:00:12]}  hxg4 {[%clk 0:00:17]} 27. Bxg4 {[%clk 0:00:12]}  Kb6 {[%clk 0:00:15]} 28. Kg3 {[%clk 0:00:12]}  Ka5 {[%clk 0:00:14]} 29. h4 {[%clk 0:00:07]}  Ka4 {[%clk 0:00:13]} 30. h5 {[%clk 0:00:04]}  Kxa3 {[%clk 0:00:14]} 31. Kf4 {[%clk 0:00:03]}  Kb2 {[%clk 0:00:13]} 32. h6 {[%clk 0:00:02]}  a5 {[%clk 0:00:13]} 0-1


[Site "https://www.chess.com"]

[Event "Titled Tuesday Blitz May 2 Early 2023"]
[White "Tymrakiewicz, Rafal"]
[Black "Akhmetov, Ayan"]
[WhiteFideId "1108832"]
[BlackFideId "13703706"]
[WhiteElo "2151"]
[BlackElo "2398"]
[Result "1-0"]
[Round "03"]
[TimeControl "180+2"]
[Date "2023.05.02"]
[WhiteClock "0:01:18"]
[BlackClock "0:00:01"]

1. d4 {[%clk 0:03:00]}  e6 {[%clk 0:00:15]} 2. e4 {[%clk 0:02:50]}  d5 {[%clk 0:00:14]} 3. e5 {[%clk 0:02:50]}  c5 {[%clk 0:00:13]} 4. c3 {[%clk 0:02:51]}  Nc6 {[%clk 0:00:13]} 5. Nf3 {[%clk 0:02:52]}  Bd7 {[%clk 0:00:12]} 6. Bd3 {[%clk 0:02:51]}  cxd4 {[%clk 0:00:11]} 7. cxd4 {[%clk 0:02:43]}  Qb6 {[%clk 0:00:10]} 8. O-O {[%clk 0:02:24]}  Nxd4 {[%clk 0:00:10]} 9. Nxd4 {[%clk 0:02:24]}  Qxd4 {[%clk 0:00:11]} 10. Qe2 {[%clk 0:02:23]}  Qb6 {[%clk 0:00:07]} 11. Nc3 {[%clk 0:02:19]}  Ne7 {[%clk 0:00:05]} 12. Be3 {[%clk 0:02:09]}  Qd8 {[%clk 0:00:05]} 13. Rac1 {[%clk 0:02:06]}  Nc6 {[%clk 0:00:05]} 14. Bf4 {[%clk 0:02:00]}  Be7 {[%clk 0:00:05]} 15. h4 {[%clk 0:01:54]}  Bxh4 {[%clk 0:00:04]} 16. Qg4 {[%clk 0:01:54]}  Be7 {[%clk 0:00:01]} 17. Qxg7 {[%clk 0:01:54]}  Rf8 {[%clk 0:00:02]} 18. Nb5 {[%clk 0:01:43]}  Qa5 {[%clk 0:00:02]} 19. Bg5 {[%clk 0:01:33]}  Bxg5 {[%clk 0:00:01]} 20. Nd6+ {[%clk 0:01:20]}  Ke7 {[%clk 0:00:01]} 21. Qxg5+ {[%clk 0:01:17]}  f6 {[%clk 0:00:02]} 22. Qg7+ {[%clk 0:01:18]}  Kd8 {[%clk 0:00:02]} 23. Nxb7+ {[%clk 0:01:18]}  Kc8 {[%clk 0:00:01]} 1-0


[Site "https://www.chess.com"]

[Event "Titled Tuesday Blitz May 2 Early 2023"]
[White "Ezat, Mohamed"]
[Black "Garakov, Mikhael"]
[WhiteFideId "10600906"]
[BlackFideId "4169034"]
[WhiteElo "2386"]
[BlackElo "2347"]
[Result "1-0"]
[Round "03"]
[TimeControl "180+2"]
[Date "2023.05.02"]
[WhiteClock "0:00:08"]
[BlackClock "0:00:23"]

1. d4 {[%clk 0:02:54]}  Nf6 {[%clk 0:02:58]} 2. c4 {[%clk 0:02:53]}  c5 {[%clk 0:02:56]} 3. d5 {[%clk 0:02:52]}  e6 {[%clk 0:02:56]} 4. Nc3 {[%clk 0:02:51]}  exd5 {[%clk 0:02:57]} 5. cxd5 {[%clk 0:02:52]}  d6 {[%clk 0:02:56]} 6. e4 {[%clk 0:02:53]}  g6 {[%clk 0:02:56]} 7. f4 {[%clk 0:02:53]}  Bg7 {[%clk 0:02:55]} 8. Bb5+ {[%clk 0:02:53]}  Nfd7 {[%clk 0:02:55]} 9. Be2 {[%clk 0:02:53]}  Qh4+ {[%clk 0:02:54]} 10. g3 {[%clk 0:02:52]}  Qe7 {[%clk 0:02:55]} 11. Nf3 {[%clk 0:02:49]}  O-O {[%clk 0:02:55]} 12. O-O {[%clk 0:02:48]}  Na6 {[%clk 0:02:44]} 13. Bc4 {[%clk 0:02:22]}  Nf6 {[%clk 0:02:07]} 14. e5 {[%clk 0:02:13]}  Ng4 {[%clk 0:02:03]} 15. h3 {[%clk 0:01:55]}  Nh6 {[%clk 0:02:02]} 16. g4 {[%clk 0:01:55]}  Nxg4 {[%clk 0:02:02]} 17. hxg4 {[%clk 0:01:54]}  Bxg4 {[%clk 0:02:03]} 18. e6 {[%clk 0:01:49]}  fxe6 {[%clk 0:01:59]} 19. dxe6 {[%clk 0:01:49]}  Nc7 {[%clk 0:02:00]} 20. Nd5 {[%clk 0:01:37]}  Nxd5 {[%clk 0:02:00]} 21. Bxd5 {[%clk 0:01:33]}  Rae8 {[%clk 0:01:51]} 22. Qb3 {[%clk 0:01:26]}  Rf5 {[%clk 0:01:15]} 23. Qxb7 {[%clk 0:00:47]}  Rxd5 {[%clk 0:01:15]} 24. Qxd5 {[%clk 0:00:46]}  Bxe6 {[%clk 0:01:16]} 25. Qe4 {[%clk 0:00:39]}  Qd7 {[%clk 0:01:16]} 26. Ng5 {[%clk 0:00:31]}  d5 {[%clk 0:01:05]} 27. Qg2 {[%clk 0:00:30]}  Bg4 {[%clk 0:00:51]} 28. Bd2 {[%clk 0:00:20]}  Re2 {[%clk 0:00:50]} 29. Rf2 {[%clk 0:00:11]}  Bd4 {[%clk 0:00:50]} 30. Be1 {[%clk 0:00:12]}  h6 {[%clk 0:00:38]} 31. Nf3 {[%clk 0:00:11]}  Be3 {[%clk 0:00:35]} 32. Ne5 {[%clk 0:00:11]}  Bxf2+ {[%clk 0:00:34]} 33. Bxf2 {[%clk 0:00:11]}  Rxe5 {[%clk 0:00:27]} 34. fxe5 {[%clk 0:00:10]}  d4 {[%clk 0:00:28]} 35. Re1 {[%clk 0:00:09]}  Be6 {[%clk 0:00:28]} 36. Qxg6+ {[%clk 0:00:08]}  Kf8 {[%clk 0:00:28]} 37. Qf6+ {[%clk 0:00:08]}  Ke8 {[%clk 0:00:28]} 38. Bh4 {[%clk 0:00:08]}  Bg8 {[%clk 0:00:25]} 39. Rf1 {[%clk 0:00:09]}  Qg4+ {[%clk 0:00:25]} 40. Kh2 {[%clk 0:00:08]}  Bd5 {[%clk 0:00:23]} 41. Qd8# {[%clk 0:00:08]} 1-0


[Site "https://www.chess.com"]

[Event "Titled Tuesday Blitz May 2 Early 2023"]
[White "Marcziter, Dmitrii"]
[Black "Spitzl, Vinzent"]
[WhiteFideId "13900765"]
[BlackFideId "12901253"]
[WhiteElo "2162"]
[BlackElo "2225"]
[Result "1-0"]
[Round "03"]
[TimeControl "180+2"]
[Date "2023.05.02"]
[WhiteClock "0:01:04"]
[BlackClock "0:00:42"]

1. e4 {[%clk 0:03:00]}  c5 {[%clk 0:02:59]} 2. Nc3 {[%clk 0:03:00]}  d6 {[%clk 0:02:59]} 3. f4 {[%clk 0:03:00]}  g6 {[%clk 0:03:00]} 4. Nf3 {[%clk 0:03:00]}  Bg7 {[%clk 0:03:00]} 5. Bc4 {[%clk 0:03:00]}  Nc6 {[%clk 0:03:00]} 6. d3 {[%clk 0:02:59]}  Nf6 {[%clk 0:03:00]} 7. O-O {[%clk 0:02:58]}  O-O {[%clk 0:02:59]} 8. a3 {[%clk 0:02:58]}  Nd4 {[%clk 0:02:57]} 9. h3 {[%clk 0:02:54]}  e6 {[%clk 0:02:51]} 10. Ne2 {[%clk 0:02:53]}  Nxe2+ {[%clk 0:02:49]} 11. Qxe2 {[%clk 0:02:53]}  d5 {[%clk 0:02:49]} 12. Ba2 {[%clk 0:02:53]}  dxe4 {[%clk 0:02:44]} 13. dxe4 {[%clk 0:02:52]}  b6 {[%clk 0:02:41]} 14. e5 {[%clk 0:02:41]}  Nd5 {[%clk 0:02:37]} 15. c4 {[%clk 0:02:39]}  Ne7 {[%clk 0:02:35]} 16. Be3 {[%clk 0:02:36]}  Bb7 {[%clk 0:02:29]} 17. Rad1 {[%clk 0:02:35]}  Qc7 {[%clk 0:02:28]} 18. Bf2 {[%clk 0:02:31]}  Rfd8 {[%clk 0:02:24]} 19. b4 {[%clk 0:02:29]}  cxb4 {[%clk 0:02:06]} 20. axb4 {[%clk 0:02:29]}  Nf5 {[%clk 0:02:07]} 21. g4 {[%clk 0:02:22]}  Ne7 {[%clk 0:02:05]} 22. Bh4 {[%clk 0:02:20]}  Rxd1 {[%clk 0:01:59]} 23. Rxd1 {[%clk 0:02:18]}  Nc6 {[%clk 0:01:55]} 24. b5 {[%clk 0:02:05]}  Nb4 {[%clk 0:01:55]} 25. Bb1 {[%clk 0:02:06]}  a5 {[%clk 0:01:52]} 26. Be4 {[%clk 0:02:00]}  Rc8 {[%clk 0:01:45]} 27. Bxb7 {[%clk 0:01:57]}  Qxb7 {[%clk 0:01:46]} 28. f5 {[%clk 0:01:51]}  exf5 {[%clk 0:01:40]} 29. gxf5 {[%clk 0:01:50]}  gxf5 {[%clk 0:01:41]} 30. Bf6 {[%clk 0:01:48]}  Bxf6 {[%clk 0:01:19]} 31. exf6 {[%clk 0:01:46]}  Kh8 {[%clk 0:01:19]} 32. Kf2 {[%clk 0:01:43]}  Qe4 {[%clk 0:01:17]} 33. Qxe4 {[%clk 0:01:31]}  fxe4 {[%clk 0:01:17]} 34. Ng5 {[%clk 0:01:32]}  Nd3+ {[%clk 0:01:05]} 35. Ke3 {[%clk 0:01:29]}  Rxc4 {[%clk 0:00:59]} 36. Nxf7+ {[%clk 0:01:23]}  Kg8 {[%clk 0:00:59]} 37. Nd6 {[%clk 0:01:21]}  Rb4 {[%clk 0:00:50]} 38. Rg1+ {[%clk 0:01:19]}  Kf8 {[%clk 0:00:50]} 39. f7 {[%clk 0:01:18]}  Ke7 {[%clk 0:00:41]} 40. Rg8 {[%clk 0:01:16]}  Kxd6 {[%clk 0:00:41]} 41. f8=Q+ {[%clk 0:01:16]}  Kd5 {[%clk 0:00:41]} 42. Qf5+ {[%clk 0:01:09]}  Kc4 {[%clk 0:00:41]} 43. Qxe4+ {[%clk 0:01:07]}  Kb3 {[%clk 0:00:41]} 44. Qxd3+ {[%clk 0:01:08]}  Ka4 {[%clk 0:00:42]} 45. Rg4 {[%clk 0:01:04]} 1-0


[Site "https://www.chess.com"]

[Event "Titled Tuesday Blitz May 2 Early 2023"]
[White "Da Silva, Lindolfo Luiz"]
[Black "Janaszak, Dawid"]
[WhiteFideId "2106558"]
[BlackFideId "1119206"]
[WhiteElo "2207"]
[BlackElo "2220"]
[Result "0-1"]
[Round "03"]
[TimeControl "180+2"]
[Date "2023.05.02"]
[WhiteClock "0:00:24"]
[BlackClock "0:00:14"]

1. d4 {[%clk 0:03:00]}  d5 {[%clk 0:02:59]} 2. g3 {[%clk 0:03:00]}  c5 {[%clk 0:02:58]} 3. Bg2 {[%clk 0:03:01]}  cxd4 {[%clk 0:02:58]} 4. Nf3 {[%clk 0:03:02]}  Nf6 {[%clk 0:02:55]} 5. O-O {[%clk 0:03:00]}  g6 {[%clk 0:02:51]} 6. Nxd4 {[%clk 0:03:01]}  Bg7 {[%clk 0:02:52]} 7. c4 {[%clk 0:03:00]}  O-O {[%clk 0:02:51]} 8. cxd5 {[%clk 0:02:54]}  Nxd5 {[%clk 0:02:51]} 9. e3 {[%clk 0:02:50]}  Nc6 {[%clk 0:02:42]} 10. Nxc6 {[%clk 0:02:49]}  bxc6 {[%clk 0:02:42]} 11. Qe2 {[%clk 0:02:33]}  Qb6 {[%clk 0:02:34]} 12. Rd1 {[%clk 0:02:30]}  Ba6 {[%clk 0:02:31]} 13. Qc2 {[%clk 0:02:22]}  Nb4 {[%clk 0:02:14]} 14. Qb3 {[%clk 0:02:21]}  Rfd8 {[%clk 0:02:10]} 15. Nc3 {[%clk 0:02:15]}  Rxd1+ {[%clk 0:02:07]} 16. Nxd1 {[%clk 0:02:13]}  Rd8 {[%clk 0:01:54]} 17. Nc3 {[%clk 0:02:12]}  Bxc3 {[%clk 0:01:41]} 18. bxc3 {[%clk 0:02:07]}  Nxa2 {[%clk 0:01:17]} 19. Qa4 {[%clk 0:01:12]}  Bb5 {[%clk 0:00:57]} 20. Qc2 {[%clk 0:00:44]}  Nxc1 {[%clk 0:00:39]} 21. Qxc1 {[%clk 0:00:45]}  Qc5 {[%clk 0:00:29]} 22. h4 {[%clk 0:00:41]}  h5 {[%clk 0:00:28]} 23. c4 {[%clk 0:00:34]}  Qxc4 {[%clk 0:00:23]} 24. Qxc4 {[%clk 0:00:34]}  Bxc4 {[%clk 0:00:24]} 25. Rxa7 {[%clk 0:00:34]}  Rd1+ {[%clk 0:00:24]} 26. Kh2 {[%clk 0:00:32]}  Rd2 {[%clk 0:00:22]} 27. Kg1 {[%clk 0:00:32]}  e6 {[%clk 0:00:17]} 28. Bxc6 {[%clk 0:00:31]}  Kg7 {[%clk 0:00:15]} 29. Be8 {[%clk 0:00:30]}  e5 {[%clk 0:00:14]} 30. Rc7 {[%clk 0:00:31]}  Bd5 {[%clk 0:00:14]} 31. Rd7 {[%clk 0:00:26]}  Rd1+ {[%clk 0:00:13]} 32. Kh2 {[%clk 0:00:24]}  Rh1# {[%clk 0:00:14]} 0-1


[Site "https://www.chess.com"]

[Event "Titled Tuesday Blitz May 2 Early 2023"]
[White "Berezin, Viktor"]
[Black "Nemec, Jachym"]
[WhiteFideId "14107872"]
[BlackFideId "23716525"]
[WhiteElo "2310"]
[BlackElo "2305"]
[Result "1-0"]
[Round "03"]
[TimeControl "180+2"]
[Date "2023.05.02"]
[WhiteClock "0:01:11"]
[BlackClock "0:01:07"]

1. d4 {[%clk 0:03:00]}  Nf6 {[%clk 0:03:00]} 2. Nf3 {[%clk 0:02:58]}  e6 {[%clk 0:03:00]} 3. c4 {[%clk 0:02:59]}  d5 {[%clk 0:03:00]} 4. g3 {[%clk 0:02:59]}  Bb4+ {[%clk 0:02:59]} 5. Nbd2 {[%clk 0:02:58]}  O-O {[%clk 0:02:56]} 6. Bg2 {[%clk 0:02:59]}  a5 {[%clk 0:02:56]} 7. O-O {[%clk 0:02:58]}  a4 {[%clk 0:02:56]} 8. a3 {[%clk 0:02:57]}  Be7 {[%clk 0:02:56]} 9. Ne5 {[%clk 0:02:57]}  Nfd7 {[%clk 0:02:54]} 10. Nxd7 {[%clk 0:02:53]}  Nxd7 {[%clk 0:02:51]} 11. e4 {[%clk 0:02:49]}  c6 {[%clk 0:02:48]} 12. b4 {[%clk 0:02:40]}  axb3 {[%clk 0:02:43]} 13. Qxb3 {[%clk 0:02:40]}  dxc4 {[%clk 0:02:43]} 14. Nxc4 {[%clk 0:02:39]}  Nf6 {[%clk 0:02:43]} 15. Rd1 {[%clk 0:02:38]}  b5 {[%clk 0:02:35]} 16. Ne5 {[%clk 0:02:34]}  Bb7 {[%clk 0:02:35]} 17. Bb2 {[%clk 0:02:25]}  Qa5 {[%clk 0:02:35]} 18. h4 {[%clk 0:02:14]}  Rfc8 {[%clk 0:02:25]} 19. g4 {[%clk 0:02:08]}  c5 {[%clk 0:02:23]} 20. dxc5 {[%clk 0:02:05]}  Rxc5 {[%clk 0:02:20]} 21. g5 {[%clk 0:02:02]}  Nxe4 {[%clk 0:02:20]} 22. Rd7 {[%clk 0:01:33]}  Bd5 {[%clk 0:02:17]} 23. Qe3 {[%clk 0:01:26]}  Rc2 {[%clk 0:01:07]} 24. Bxe4 {[%clk 0:01:11]} 1-0


[Site "https://www.chess.com"]

[Event "Titled Tuesday Blitz May 2 Early 2023"]
[White "Zaitsev, Alexander"]
[Black "Rom, Jasper"]
[WhiteFideId "4164490"]
[BlackFideId "2023733"]
[WhiteElo "2373"]
[BlackElo "2233"]
[Result "0-1"]
[Round "03"]
[TimeControl "180+2"]
[Date "2023.05.02"]
[WhiteClock "0:00:01"]
[BlackClock "0:00:48"]

1. d4 {[%clk 0:02:57]}  d5 {[%clk 0:02:59]} 2. c4 {[%clk 0:02:56]}  e6 {[%clk 0:02:59]} 3. Nc3 {[%clk 0:02:56]}  c6 {[%clk 0:02:59]} 4. cxd5 {[%clk 0:02:46]}  exd5 {[%clk 0:02:58]} 5. Bf4 {[%clk 0:02:46]}  Bd6 {[%clk 0:02:58]} 6. Bxd6 {[%clk 0:02:36]}  Qxd6 {[%clk 0:02:59]} 7. e3 {[%clk 0:02:34]}  Nf6 {[%clk 0:02:59]} 8. Bd3 {[%clk 0:02:33]}  O-O {[%clk 0:02:59]} 9. Qc2 {[%clk 0:02:24]}  Nbd7 {[%clk 0:02:58]} 10. Nf3 {[%clk 0:02:13]}  Re8 {[%clk 0:02:57]} 11. O-O {[%clk 0:02:14]}  Nf8 {[%clk 0:02:57]} 12. Ne5 {[%clk 0:01:57]}  Ng4 {[%clk 0:02:57]} 13. Nxg4 {[%clk 0:01:33]}  Bxg4 {[%clk 0:02:58]} 14. Rab1 {[%clk 0:01:19]}  a5 {[%clk 0:02:56]} 15. a3 {[%clk 0:01:18]}  Re6 {[%clk 0:02:56]} 16. b4 {[%clk 0:01:10]}  axb4 {[%clk 0:02:53]} 17. axb4 {[%clk 0:01:11]}  Rh6 {[%clk 0:02:52]} 18. f4 {[%clk 0:00:59]}  Re8 {[%clk 0:02:50]} 19. Rfe1 {[%clk 0:00:55]}  Rhe6 {[%clk 0:02:37]} 20. Qf2 {[%clk 0:00:54]}  Qe7 {[%clk 0:02:37]} 21. e4 {[%clk 0:00:22]}  dxe4 {[%clk 0:02:33]} 22. Rxe4 {[%clk 0:00:22]}  Qd6 {[%clk 0:02:09]} 23. b5 {[%clk 0:00:17]}  Rd8 {[%clk 0:01:53]} 24. h3 {[%clk 0:00:16]}  Bf5 {[%clk 0:01:49]} 25. Rxe6 {[%clk 0:00:16]}  Bxe6 {[%clk 0:01:40]} 26. bxc6 {[%clk 0:00:16]}  bxc6 {[%clk 0:01:40]} 27. Be4 {[%clk 0:00:16]}  f5 {[%clk 0:01:33]} 28. Bf3 {[%clk 0:00:11]}  Ng6 {[%clk 0:01:30]} 29. g3 {[%clk 0:00:09]}  Ne7 {[%clk 0:01:30]} 30. Re1 {[%clk 0:00:08]}  Bf7 {[%clk 0:01:26]} 31. Qe3 {[%clk 0:00:08]}  Re8 {[%clk 0:01:16]} 32. Qe5 {[%clk 0:00:07]}  Qd7 {[%clk 0:01:14]} 33. Qc5 {[%clk 0:00:06]}  g6 {[%clk 0:01:06]} 34. Re5 {[%clk 0:00:07]}  Nd5 {[%clk 0:00:54]} 35. Bxd5 {[%clk 0:00:05]}  cxd5 {[%clk 0:00:53]} 36. h4 {[%clk 0:00:04]}  Rc8 {[%clk 0:00:51]} 37. Qa5 {[%clk 0:00:02]}  Qc6 {[%clk 0:00:51]} 38. Re3 {[%clk 0:00:01]}  Qc4 {[%clk 0:00:49]} 39. Qa6 {[%clk 0:00:01]}  Qxa6 {[%clk 0:00:48]} 0-1


[Site "https://www.chess.com"]

[Event "Titled Tuesday Blitz May 2 Early 2023"]
[White "Todorovic, Bojan"]
[Black "Loiacono, Antonio"]
[WhiteFideId "917087"]
[BlackFideId "895415"]
[WhiteElo "2266"]
[BlackElo "2257"]
[Result "1-0"]
[Round "03"]
[TimeControl "180+2"]
[Date "2023.05.02"]
[WhiteClock "0:00:54"]
[BlackClock "0:00:47"]

1. d4 {[%clk 0:02:59]}  Nf6 {[%clk 0:02:58]} 2. c4 {[%clk 0:02:58]}  b6 {[%clk 0:02:59]} 3. Nc3 {[%clk 0:02:57]}  Bb7 {[%clk 0:02:59]} 4. f3 {[%clk 0:02:56]}  Nc6 {[%clk 0:02:54]} 5. e4 {[%clk 0:02:55]}  e5 {[%clk 0:02:54]} 6. d5 {[%clk 0:02:51]}  Nd4 {[%clk 0:02:53]} 7. Nge2 {[%clk 0:02:50]}  Nxe2 {[%clk 0:02:29]} 8. Bxe2 {[%clk 0:02:49]}  Bc5 {[%clk 0:02:25]} 9. Bg5 {[%clk 0:02:43]}  h6 {[%clk 0:02:23]} 10. Bh4 {[%clk 0:02:42]}  g5 {[%clk 0:02:13]} 11. Bf2 {[%clk 0:02:42]}  Bxf2+ {[%clk 0:02:13]} 12. Kxf2 {[%clk 0:02:40]}  d6 {[%clk 0:02:14]} 13. b4 {[%clk 0:02:35]}  Qe7 {[%clk 0:02:12]} 14. Qd2 {[%clk 0:02:34]}  Nd7 {[%clk 0:02:07]} 15. h4 {[%clk 0:02:30]}  gxh4 {[%clk 0:02:04]} 16. Rh3 {[%clk 0:02:28]}  Nf8 {[%clk 0:02:04]} 17. f4 {[%clk 0:02:14]}  exf4 {[%clk 0:01:58]} 18. Qxf4 {[%clk 0:02:10]}  Ng6 {[%clk 0:01:57]} 19. Qe3 {[%clk 0:02:01]}  Bc8 {[%clk 0:01:55]} 20. Rf3 {[%clk 0:01:58]}  Bg4 {[%clk 0:01:48]} 21. a4 {[%clk 0:01:44]}  a5 {[%clk 0:01:42]} 22. bxa5 {[%clk 0:01:35]}  Rxa5 {[%clk 0:01:43]} 23. Nb5 {[%clk 0:01:30]}  Ne5 {[%clk 0:01:33]} 24. Rf4 {[%clk 0:01:21]}  Bxe2 {[%clk 0:01:28]} 25. Qxe2 {[%clk 0:01:19]}  Qg5 {[%clk 0:01:28]} 26. Rf5 {[%clk 0:01:16]}  Qg3+ {[%clk 0:01:23]} 27. Kf1 {[%clk 0:01:15]}  Ng4 {[%clk 0:01:19]} 28. Ra3 {[%clk 0:01:12]}  Rxa4 {[%clk 0:01:01]} 29. Rxa4 {[%clk 0:01:04]}  Ne3+ {[%clk 0:00:58]} 30. Kg1 {[%clk 0:01:02]}  Nxf5 {[%clk 0:00:54]} 31. exf5+ {[%clk 0:01:01]}  Kd7 {[%clk 0:00:55]} 32. Ra7 {[%clk 0:00:57]}  Rc8 {[%clk 0:00:51]} 33. f6 {[%clk 0:00:57]}  Qg5 {[%clk 0:00:47]} 34. Qe7# {[%clk 0:00:54]} 1-0


[Site "https://www.chess.com"]